bitfinex/quotes_BTCUSD_20240817
["timestamp","ask_amount","ask_price","bid_price","bid_amount"]
[1723937482418,0.001824,59509.0,59508.0,0.5979724]
[1723937483663,0.001824,59509.0,59508.0,0.5969724]
[1723937484852,0.001824,59509.0,59508.0,0.5979724]
[1723937488475,0.001824,59509.0,59508.0,0.5969724]
[1723937490720,0.001824,59509.0,59508.0,0.5979724]
[1723937491407,0.001824,59509.0,59508.0,0.5969724]
[1723937491612,0.000824,59509.0,59508.0,0.5969724]
[1723937491871,0.001824,59509.0,59508.0,0.5969724]
[1723937493326,0.000824,59509.0,59508.0,0.5979724]
[1723937493529,0.001824,59509.0,59508.0,0.5979724]
[1723937494840,0.000824,59509.0,59508.0,0.5979724]
[1723937495941,0.09501514,59511.0,59510.0,0.084019]
[1723937496160,0.09501514,59511.0,59510.0,0.224119]
[1723937497121,0.09601514,59511.0,59510.0,0.224119]
[1723937497254,0.18003314,59511.0,59510.0,0.0639]
[1723937497618,0.18003314,59511.0,59508.0,0.2771064]
[1723937497619,0.08402,59509.0,59508.0,0.3410064]
[1723937498144,0.08402,59509.0,59508.0,0.2009064]
[1723937498350,0.420102,59509.0,59508.0,0.2009064]
[1723937498554,0.71004018,59509.0,59508.0,0.2009064]
[1723937498977,0.76241964,59509.0,59508.0,0.2009064]
[1723937499191,0.71204018,59509.0,59508.0,0.2009064]
[1723937499400,0.76243206,59509.0,59508.0,0.2009064]
[1723937499595,0.71204018,59509.0,59508.0,0.2009064]
[1723937499796,0.70804018,59509.0,59508.0,0.2009064]
[1723937500209,0.71404018,59509.0,59508.0,0.2029064]
[1723937500408,0.76443219,59509.0,59508.0,0.2029064]
[1723937500720,0.71404018,59509.0,59508.0,0.2019064]
[1723937501053,0.71604018,59509.0,59508.0,0.2019064]
[1723937501665,0.76643647,59509.0,59508.0,0.2019064]
[1723937504323,0.71604018,59509.0,59508.0,0.2019064]
[1723937511334,0.71686418,59509.0,59508.0,0.2019064]
[1723937513261,0.76725511,59509.0,59508.0,0.2019064]
[1723937514859,0.76725277,59509.0,59508.0,0.2019064]
[1723937517010,0.69285277,59509.0,59508.0,0.2019064]
[1723937523108,0.69685277,59509.0,59508.0,0.2019064]
[1723937523318,0.80964706,59509.0,59508.0,0.2019064]
[1723937523523,0.91769341,59509.0,59508.0,0.2019064]
[1723937524632,0.83484136,59509.0,59508.0,0.2019064]
[1723937526825,0.92510518,59509.0,59508.0,0.2019064]
[1723937527010,0.92510518,59509.0,59501.0,0.0009064]
[1723937527011,0.791913,59502.0,59501.0,0.0009064]
[1723937527383,0.83643195,59502.0,59501.0,0.0009064]
[1723937527556,0.93399075,59502.0,59501.0,0.0009064]
[1723937527754,1.00956437,59502.0,59501.0,0.0009064]
[1723937527986,1.0095661,59502.0,59501.0,0.0009064]
[1723937528190,0.93399075,59502.0,59501.0,0.0009064]
[1723937528388,1.00955363,59502.0,59501.0,0.0009064]
[1723937528574,1.00955363,59502.0,59501.0,0.0039064]
[1723937528787,1.00955363,59502.0,59501.0,0.0059064]
[1723937528979,1.00955339,59502.0,59501.0,0.0059064]
[1723937529178,1.03592454,59502.0,59501.0,0.0059064]
[1723937529379,0.95752454,59502.0,59501.0,0.0059064]
[1723937529584,0.96152454,59502.0,59501.0,0.0059064]
[1723937529863,0.8859619,59502.0,59501.0,0.0059064]
[1723937531002,0.8819619,59502.0,59501.0,0.0059064]
[1723937531227,0.8839619,59502.0,59501.0,0.0059064]
[1723937531465,0.8859619,59502.0,59501.0,0.0059064]
[1723937535150,0.9735619,59502.0,59501.0,0.0059064]
[1723937536917,1.06112595,59502.0,59501.0,0.0059064]
[1723937540036,0.86926715,59502.0,59501.0,0.0059064]
[1723937540451,0.96356715,59502.0,59501.0,0.0059064]
[1723937540983,0.96352813,59502.0,59501.0,0.0059064]
[1723937541386,0.8628031,59502.0,59501.0,0.0059064]
[1723937543458,0.98870939,59502.0,59501.0,0.0059064]
[1723937543665,1.08988341,59502.0,59501.0,0.0059064]
[1723937545791,1.08993193,59502.0,59501.0,0.0059064]
[1723937549884,1.01553193,59502.0,59501.0,0.0059064]
[1723937553934,0.99034137,59502.0,59501.0,0.0059064]
[1723937554150,0.88716735,59502.0,59501.0,0.0059064]
[1723937554355,0.7884031,59502.0,59501.0,0.0059064]
[1723937557029,1.0670641,59502.0,59501.0,0.0059064]
[1723937557227,0.033,59491.0,59490.0,0.05028034]
[1723937557448,0.74224095,59491.0,59490.0,0.0009064]
[1723937557605,0.87590042,59491.0,59490.0,0.0009064]
[1723937557762,1.14399242,59491.0,59490.0,0.0009064]
[1723937558410,0.97590042,59491.0,59490.0,0.0009064]
[1723937559053,1.14399242,59491.0,59490.0,0.0009064]
[1723937559474,0.97590042,59491.0,59490.0,0.0009064]
[1723937559659,1.07020042,59491.0,59490.0,0.0009064]
[1723937559860,1.08720042,59491.0,59490.0,0.0029064]
[1723937560073,1.26512312,59491.0,59490.0,0.0029064]
[1723937560407,1.41615807,59491.0,59490.0,0.0029064]
[1723937560799,1.24806607,59491.0,59490.0,0.0029064]
[1723937561362,1.26512312,59491.0,59490.0,0.0029064]
[1723937561563,1.41612483,59491.0,59490.0,0.0029064]
[1723937561828,1.24803283,59491.0,59490.0,0.0029064]
[1723937562237,1.41612483,59491.0,59490.0,0.0029064]
[1723937562613,1.26512312,59491.0,59490.0,0.0029064]
[1723937573732,0.593332,59490.0,59488.0,0.0009064]
[1723937573921,0.90444692,59490.0,59488.0,0.0009064]
[1723937574058,0.76085095,59490.0,59488.0,0.0009064]
[1723937574262,0.92894595,59490.0,59488.0,0.0009064]
[1723937575093,0.93394595,59490.0,59489.0,0.0019075]
[1723937575295,0.93394595,59490.0,59489.0,0.0029075]
[1723937575495,0.94394595,59490.0,59489.0,0.0029075]
[1723937575694,1.09299728,59490.0,59489.0,0.0029075]
[1723937579709,0.3619422,59490.0,59489.0,0.1484075]
[1723937579932,0.099047,59490.0,59489.0,0.1484075]
[1723937580133,0.361442,59490.0,59489.0,0.1484075]
[1723937582626,0.57487822,59490.0,59489.0,0.1484075]
[1723937582828,0.40578322,59490.0,59489.0,0.1484075]
[1723937583053,0.46367104,59490.0,59489.0,0.1484075]
[1723937585816,0.46467104,59490.0,59489.0,0.1484075]
[1723937586017,0.63276604,59490.0,59489.0,0.1484075]
[1723937587056,0.63476604,59490.0,59489.0,0.1484075]
[1723937587982,0.46667104,59490.0,59489.0,0.1484075]
[1723937588419,0.66676604,59490.0,59489.0,0.1484075]
[1723937589341,0.69314307,59490.0,59489.0,0.1484075]
[1723937590049,0.63125525,59490.0,59489.0,0.1484075]
[1723937593481,0.63208025,59490.0,59489.0,0.1484075]
[1723937595824,0.43298525,59490.0,59489.0,0.1484075]
[1723937599594,0.26489025,59490.0,59489.0,0.1484075]
[1723937599800,0.43298525,59490.0,59489.0,0.1484075]
[1723937600651,0.42798525,59490.0,59489.0,0.1474075]
[1723937601052,0.43298525,59490.0,59489.0,0.1474075]
[1723937601701,0.42298525,59490.0,59489.0,0.1464075]
[1723937601875,0.45798525,59490.0,59489.0,0.1464075]
[1723937602205,0.62608025,59490.0,59489.0,0.1464075]
[1723937607351,0.59970322,59490.0,59489.0,0.1464075]
[1723937611209,0.43160822,59490.0,59489.0,0.1464075]
[1723937611384,0.05516622,59490.0,59489.0,0.2304565]
[1723937611586,0.05516622,59490.0,59489.0,0.3985545]
[1723937611812,0.010825,59490.0,59489.0,0.3985545]
[1723937612018,0.010825,59490.0,59489.0,0.41976934]
[1723937612190,0.010825,59490.0,59489.0,0.58786734]
[1723937612390,0.005825,59490.0,59489.0,0.3985545]
[1723937612593,0.000825,59490.0,59489.0,0.3985545]
[1723937612815,0.002825,59490.0,59489.0,0.3985545]
[1723937613017,0.002825,59490.0,59489.0,0.4025545]
[1723937613217,0.000825,59490.0,59489.0,0.3985545]
[1723937613577,0.002825,59490.0,59489.0,0.4115545]
[1723937614351,0.002825,59490.0,59489.0,0.2434565]
[1723937614748,0.002825,59490.0,59489.0,0.4115545]
[1723937621501,0.002825,59490.0,59489.0,0.2434565]
[1723937622020,0.002825,59490.0,59489.0,0.4115545]
[1723937632492,0.002825,59490.0,59489.0,0.1594075]
[1723937632973,0.086872,59490.0,59489.0,0.1594075]
[1723937633405,0.254967,59490.0,59489.0,0.1594075]
[1723937634481,0.086872,59490.0,59489.0,0.1594075]
[1723937636213,0.002825,59490.0,59489.0,0.1594075]
[1723937636650,0.002825,59490.0,59489.0,0.2434565]
[1723937636875,0.002825,59490.0,59489.0,0.1594075]
[1723937639442,0.086872,59490.0,59489.0,0.1594075]
[1723937639445,0.255967,59490.0,59489.0,0.0139075]
[1723937639651,0.332367,59490.0,59489.0,0.0139075]
[1723937640276,0.37670941,59490.0,59489.0,0.0139075]
[1723937640893,0.332367,59490.0,59489.0,0.0139075]
[1723937641314,0.37671196,59490.0,59489.0,0.0139075]
[1723937641769,0.37371196,59490.0,59489.0,0.0139075]
[1723937642199,0.71290196,59490.0,59489.0,0.0139075]
[1723937642412,0.81566312,59490.0,59489.0,0.0139075]
[1723937642617,0.81166312,59490.0,59489.0,0.0139075]
[1723937642818,0.71290196,59490.0,59489.0,0.0139075]
[1723937643053,0.71490196,59490.0,59489.0,0.0139075]
[1723937644604,0.81566154,59490.0,59489.0,0.0139075]
[1723937645031,0.94457531,59490.0,59489.0,0.0139075]
[1723937645265,0.94657531,59490.0,59489.0,0.0139075]
[1723937646145,0.83466154,59490.0,59489.0,0.0139075]
[1723937646360,0.81166154,59490.0,59489.0,0.0139075]
[1723937646794,0.71090196,59490.0,59489.0,0.0139075]
[1723937647028,0.71490196,59490.0,59489.0,0.0139075]
[1723937648114,0.71090196,59490.0,59489.0,0.0139075]
[1723937648745,0.71290196,59490.0,59489.0,0.0139075]
[1723937649582,0.78844209,59490.0,59489.0,0.0139075]
[1723937650653,0.71204209,59490.0,59489.0,0.0139075]
[1723937650860,0.80634209,59490.0,59489.0,0.0778075]
[1723937651058,0.80834209,59490.0,59489.0,0.0778075]
[1723937652416,0.80833159,59490.0,59489.0,0.0778075]
[1723937652864,0.81033159,59490.0,59489.0,0.0778075]
[1723937653117,0.80633159,59490.0,59489.0,0.0778075]
[1723937653360,0.80833159,59490.0,59489.0,0.0778075]
[1723937653578,0.73280196,59490.0,59489.0,0.0778075]
[1723937653799,0.73480196,59490.0,59489.0,0.0778075]
[1723937656211,0.51775002,59490.0,59489.0,0.0778075]
[1723937656411,0.56170696,59490.0,59489.0,0.0778075]
[1723937670075,0.56170696,59490.0,59489.0,0.1565075]
[1723937674065,0.39361196,59490.0,59489.0,0.1565075]
[1723937674819,0.13121696,59490.0,59489.0,0.1565075]
[1723937675376,0.22551696,59490.0,59489.0,0.1565075]
[1723937681490,0.04716996,59490.0,59489.0,0.1565075]
[1723937681690,0.14146996,59490.0,59489.0,0.1565075]
[1723937682093,0.22551696,59490.0,59489.0,0.1565075]
[1723937691421,0.13121696,59490.0,59489.0,0.1565075]
[1723937693991,0.04716996,59490.0,59489.0,0.1565075]
[1723937694600,0.04716996,59490.0,59489.0,0.2405565]
[1723937694801,0.04716996,59490.0,59489.0,0.1565075]
[1723937694802,0.002825,59490.0,59489.0,0.1565075]
[1723937695488,0.04717089,59490.0,59489.0,0.1565075]
[1723937695848,0.04717089,59490.0,59489.0,0.2405565]
[1723937696942,0.04717089,59490.0,59489.0,0.5767525]
[1723937697131,0.002825,59490.0,59489.0,0.5767525]
[1723937700875,0.002825,59490.0,59489.0,0.74830704]
[1723937701462,0.002825,59490.0,59489.0,0.76950827]
[1723937701989,0.002825,59490.0,59489.0,0.74830704]
[1723937702762,0.002825,59490.0,59489.0,0.2405565]
[1723937702963,0.002825,59490.0,59489.0,0.1565075]
[1723937703201,0.086872,59490.0,59489.0,0.0778075]
[1723937704179,0.13121693,59490.0,59489.0,0.0778075]
[1723937704334,0.342567,59490.0,59489.0,0.0139075]
[1723937704542,0.55500884,59490.0,59489.0,0.0139075]
[1723937704757,0.29931384,59490.0,59489.0,0.0139075]
[1723937704958,0.13121884,59490.0,59489.0,0.0797075]
[1723937705191,0.13121884,59490.0,59489.0,0.1578075]
[1723937705417,0.04717184,59490.0,59489.0,0.1578075]
[1723937705644,0.37371384,59490.0,59489.0,0.0139075]
[1723937707689,0.54180884,59490.0,59489.0,0.0139075]
[1723937709286,0.46740884,59490.0,59489.0,0.0139075]
[1723937709491,0.46740884,59490.0,59489.0,0.0774075]
[1723937709713,0.13121884,59490.0,59489.0,0.0774075]
[1723937709937,0.086872,59490.0,59489.0,0.0774075]
[1723937710173,0.13122316,59490.0,59489.0,0.0774075]
[1723937710598,0.002825,59490.0,59489.0,0.1541075]
[1723937716894,0.04716944,59490.0,59489.0,0.1541075]
[1723937718659,0.002825,59490.0,59489.0,0.1541075]
[1723937719072,0.04716991,59490.0,59489.0,0.1541075]
[1723937719383,0.04716991,59490.0,59489.0,0.0774075]
[1723937719588,0.04716991,59490.0,59489.0,0.0139075]
[1723937719792,0.04716991,59490.0,59489.0,0.0906075]
[1723937720417,0.04716991,59490.0,59489.0,0.1562075]
[1723937720820,0.002825,59490.0,59489.0,0.1562075]
[1723937727215,0.002825,59490.0,59489.0,0.24361808]
[1723937729487,0.002825,59490.0,59489.0,0.41171608]
[1723937733489,0.002825,59490.0,59489.0,0.43291349]
[1723937733897,0.002825,59490.0,59489.0,0.41171608]
[1723937734333,0.002825,59490.0,59489.0,0.57981408]
[1723937735078,0.002825,59490.0,59489.0,0.41171608]
[1723937740693,0.002825,59490.0,59489.0,0.75136862]
[1723937740903,0.002825,59490.0,59489.0,0.77257043]
[1723937741687,0.002825,59490.0,59489.0,0.76920885]
[1723937742088,0.092125,59499.0,59495.0,0.1471]
[1723937743154,0.092125,59499.0,59495.0,0.23114]
[1723937743371,0.096125,59499.0,59495.0,0.23114]
[1723937744306,0.04432021,59498.0,59495.0,0.23114]
[1723937744510,0.04432021,59498.0,59495.0,0.1471]
[1723937744708,0.183984,59499.0,59495.0,0.1471]
[1723937744907,0.04432332,59498.0,59495.0,0.1471]
[1723937745769,0.04632332,59498.0,59495.0,0.1471]
[1723937745974,0.04432332,59497.0,59495.0,0.1471]
[1723937747561,0.001,59497.0,59495.0,0.23114]
[1723937747761,0.001,59497.0,59496.0,0.084039]
[1723937748166,0.001,59497.0,59495.0,0.1471]
[1723937748365,0.001,59497.0,59496.0,0.0662]
[1723937748567,0.002,59497.0,59496.0,0.0662]
[1723937750397,0.002,59497.0,59496.0,0.1437]
[1723937750589,0.003,59497.0,59496.0,0.1437]
[1723937758458,0.04732362,59497.0,59496.0,0.1437]
[1723937761049,0.04732362,59497.0,59496.0,0.0662]
[1723937764643,0.04732362,59497.0,59496.0,0.1452]
[1723937767133,0.04732362,59497.0,59496.0,0.23260032]
[1723937767343,0.003,59497.0,59496.0,0.56875632]
[1723937768040,0.000824,59499.0,59498.0,0.252108]
[1723937768247,0.000824,59499.0,59498.0,0.3983689]
[1723937769741,0.000824,59499.0,59498.0,0.395008]
[1723937770916,0.000824,59499.0,59498.0,0.57408]
[1723937771051,0.001824,59499.0,59498.0,0.58308]
[1723937771658,0.001824,59499.0,59498.0,0.75463454]
[1723937771834,0.001824,59499.0,59498.0,0.84893454]
[1723937773875,0.001824,59499.0,59498.0,1.01700654]
[1723937774079,0.001824,59499.0,59498.0,1.03820091]
[1723937774277,0.001824,59499.0,59498.0,0.94390091]
[1723937776192,0.001824,59499.0,59498.0,0.94389805]
[1723937781208,0.00141943,59499.0,59498.0,0.94389805]
[1723937782275,0.00141943,59499.0,59498.0,0.77582605]
[1723937782481,0.00141943,59499.0,59498.0,0.58656254]
[1723937783818,0.00141943,59499.0,59498.0,0.44366254]
[1723937793474,0.07581943,59499.0,59498.0,0.02]
[1723937794348,0.15985443,59499.0,59498.0,0.02]
[1723937794487,0.15985443,59499.0,59498.0,0.0209064]
[1723937797329,0.15885443,59499.0,59498.0,0.0119064]
[1723937797533,0.15885443,59499.0,59498.0,0.0179064]
[1723937797736,0.15985443,59499.0,59498.0,0.0069064]
[1723937798188,0.16085443,59499.0,59498.0,0.0179064]
[1723937798526,0.32892443,59499.0,59498.0,0.0129064]
[1723937798974,0.32892443,59499.0,59498.0,0.0179064]
[1723937799302,0.16085443,59499.0,59498.0,0.0179064]
[1723937799442,0.08645443,59499.0,59498.0,0.0179064]
[1723937807064,0.00241943,59499.0,59498.0,0.0179064]
[1723937813059,0.08645443,59499.0,59498.0,0.0179064]
[1723937813237,0.08645443,59499.0,59498.0,0.0946064]
[1723937814195,0.00241943,59499.0,59498.0,0.6819303]
[1723937814393,0.00241943,59499.0,59498.0,0.8500023]
[1723937814594,0.00241943,59499.0,59498.0,1.0180743]
[1723937815055,0.00241943,59499.0,59498.0,1.03926367]
[1723937815432,0.00241943,59499.0,59498.0,1.03426367]
[1723937815835,0.00241943,59499.0,59498.0,0.93996367]
[1723937816439,0.00041943,59499.0,59498.0,0.92796367]
[1723937816856,0.00041943,59499.0,59498.0,0.93296367]
[1723937817337,0.00141943,59499.0,59498.0,0.9307743]
[1723937817630,0.00141943,59499.0,59498.0,0.95196426]
[1723937817853,0.00141943,59499.0,59498.0,0.94696426]
[1723937818053,0.00141943,59499.0,59498.0,0.96096426]
[1723937818254,0.00141943,59499.0,59498.0,0.9397743]
[1723937818630,0.00141943,59499.0,59498.0,0.96096414]
[1723937819891,0.00141943,59499.0,59498.0,0.9397743]
[1723937820470,0.00141943,59499.0,59498.0,0.96096415]
[1723937820874,0.00141943,59499.0,59498.0,0.9397743]
[1723937821241,0.00141943,59499.0,59498.0,0.96096415]
[1723937821678,0.00141943,59499.0,59498.0,0.95760279]
[1723937822278,0.00141943,59499.0,59498.0,0.93641294]
[1723937825693,0.00141943,59499.0,59498.0,0.5967864]
[1723937825897,0.00141943,59499.0,59498.0,0.2606424]
[1723937826870,0.00141943,59499.0,59498.0,0.2466424]
[1723937827244,0.00041943,59499.0,59498.0,0.2416424]
[1723937827578,0.00141943,59499.0,59498.0,0.2556424]
[1723937829114,0.00141943,59499.0,59498.0,0.4237144]
[1723937837098,0.00141943,59499.0,59498.0,0.76334094]
[1723937837586,0.00141943,59499.0,59498.0,0.78453177]
[1723937838357,0.00141943,59499.0,59498.0,0.95260377]
[1723937841186,0.00141943,59499.0,59498.0,0.93141294]
[1723937841394,0.00141943,59499.0,59498.0,0.95260268]
[1723937843464,0.00141943,59499.0,59498.0,0.78453068]
[1723937844261,0.00141943,59499.0,59498.0,0.78453131]
[1723937846384,0.00141943,59499.0,59498.0,0.53627677]
[1723937846596,0.09571943,59499.0,59498.0,0.05009677]
[1723937847000,0.00141943,59499.0,59498.0,0.13413277]
[1723937847460,0.00141943,59499.0,59498.0,0.61437677]
[1723937849806,0.00141943,59499.0,59498.0,0.5931864]
[1723937850053,0.00141943,59499.0,59498.0,0.61437912]
[1723937850469,0.00141943,59499.0,59498.0,0.5931864]
[1723937850668,0.00141943,59499.0,59498.0,0.61437912]
[1723937851326,0.00141943,59499.0,59498.0,0.78593366]
[1723937853789,0.00141943,59499.0,59498.0,0.95400566]
[1723937853996,0.00141943,59499.0,59498.0,1.05400446]
[1723937855818,0.00141943,59499.0,59498.0,1.10426939]
[1723937856430,0.00141943,59499.0,59498.0,1.10431206]
[1723937857221,0.00141943,59499.0,59498.0,1.05400446]
[1723937858130,0.00141943,59499.0,59498.0,1.06383421]
[1723937858338,0.00141943,59499.0,59498.0,1.13929562]
[1723937859180,0.00141943,59499.0,59498.0,1.51218956]
[1723937859821,0.00141943,59499.0,59498.0,1.43672815]
[1723937860238,0.00141943,59499.0,59498.0,1.53734336]
[1723937860460,0.00141943,59499.0,59498.0,1.53736434]
[1723937860890,0.00141943,59499.0,59498.0,1.43672659]
[1723937862766,0.00141943,59499.0,59498.0,1.41553507]
[1723937863025,0.00141943,59499.0,59498.0,1.43672463]
[1723937863211,0.00141943,59499.0,59498.0,1.41553507]
[1723937863539,0.00141943,59499.0,59498.0,1.43672463]
[1723937865381,0.00141943,59499.0,59498.0,1.4367236]
[1723937865585,0.00141943,59499.0,59498.0,1.53734718]
[1723937867047,0.00141943,59499.0,59498.0,1.53734637]
[1723937868168,0.00141943,59499.0,59498.0,1.43672279]
[1723937869906,0.00141943,59499.0,59498.0,1.43672123]
[1723937871409,0.00141943,59499.0,59498.0,1.43672126]
[1723937874361,0.00141943,59499.0,59498.0,1.06383147]
[1723937874539,0.00141943,59499.0,59498.0,1.43672125]
[1723937875944,0.00141943,59499.0,59498.0,1.43672123]
[1723937876198,0.00141943,59499.0,59498.0,1.53733058]
[1723937876574,0.00141943,59499.0,59498.0,1.43672123]
[1723937877777,0.00141943,59499.0,59498.0,1.53733058]
[1723937878670,0.00141943,59499.0,59498.0,1.43672123]
[1723937878875,0.00141943,59499.0,59498.0,1.43672405]
[1723937880111,0.00141943,59499.0,59498.0,1.51219801]
[1723937882012,0.00141943,59499.0,59498.0,1.51220812]
[1723937884394,0.00141943,59499.0,59498.0,1.13930971]
[1723937884776,0.00141943,59499.0,59498.0,1.43673264]
[1723937885840,0.00141943,59499.0,59498.0,1.53737032]
[1723937887386,0.00141943,59499.0,59498.0,1.51618156]
[1723937887534,0.00141943,59499.0,59498.0,1.5373706]
[1723937887973,0.00141943,59499.0,59498.0,1.53737059]
[1723937891680,0.00141943,59499.0,59498.0,1.5373706]
[1723937894174,0.00141943,59499.0,59498.0,1.43673292]
[1723937895532,0.00141943,59499.0,59498.0,1.41554388]
[1723937895740,0.00141943,59499.0,59498.0,1.43672279]
[1723937896197,0.00141943,59499.0,59498.0,1.56256632]
[1723937899283,0.00141943,59499.0,59498.0,1.43672279]
[1723937899531,0.00141943,59499.0,59498.0,0.54931139]
[1723937899532,0.07581943,59499.0,59498.0,0.54931139]
[1723937899744,0.07581943,59499.0,59498.0,0.05009544]
[1723937899745,0.08901943,59499.0,59498.0,0.05009544]
[1723937899949,0.21735904,59499.0,59498.0,0.0289064]
[1723937900225,0.38542904,59499.0,59498.0,0.0289064]
[1723937900433,0.34012443,59499.0,59498.0,0.0149064]
[1723937900637,0.38444458,59499.0,59498.0,0.0009064]
[1723937900923,0.38544458,59499.0,59498.0,0.0219064]
[1723937901128,0.34112443,59499.0,59498.0,0.0219064]
[1723937901323,0.34112443,59499.0,59498.0,0.0119064]
[1723937901703,0.34112443,59499.0,59498.0,0.0169064]
[1723937901903,0.17305443,59499.0,59498.0,0.0059064]
[1723937902115,0.17205443,59499.0,59498.0,0.0059064]
[1723937902337,0.17205443,59499.0,59498.0,0.0109064]
[1723937904162,0.08801943,59499.0,59498.0,0.0949424]
[1723937904367,0.00041943,59499.0,59498.0,0.0949424]
[1723937904578,0.00041943,59499.0,59498.0,0.2630144]
[1723937904813,0.00041943,59499.0,59498.0,0.0949424]
[1723937905576,0.00041943,59499.0,59498.0,0.2630144]
[1723937910746,0.00041943,59499.0,59498.0,0.0949424]
[1723937912691,0.00041943,59499.0,59498.0,0.0109064]
[1723937912821,0.17205443,59499.0,59498.0,0.0109064]
[1723937916061,0.17205443,59499.0,59498.0,0.01086504]
[1723937925461,0.08801943,59499.0,59498.0,0.01086504]
[1723937934233,0.13234215,59499.0,59498.0,0.01086504]
[1723937937834,0.18276315,59499.0,59498.0,0.01086504]
[1723937939734,0.16956315,59499.0,59498.0,0.01086504]
[1723937940465,0.27040515,59499.0,59498.0,0.01086504]
[1723937940687,0.46340376,59499.0,59498.0,0.01086504]
[1723937941114,0.51381906,59499.0,59498.0,0.01086504]
[1723937941454,0.46340376,59499.0,59498.0,0.01086504]
[1723937941654,0.40124715,59499.0,59498.0,0.01086504]
[1723937941859,0.22600515,59499.0,59498.0,0.01086504]
[1723937942062,0.22600515,59499.0,59498.0,0.00086504]
[1723937942500,0.22600515,59499.0,59498.0,0.00186504]
[1723937942501,0.23600515,59499.0,59498.0,0.00186504]
[1723937942714,0.13516315,59499.0,59498.0,0.00086504]
[1723937942918,0.05174215,59499.0,59498.0,0.14626504]
[1723937943121,0.05674215,59499.0,59498.0,0.14626504]
[1723937943724,0.05974215,59499.0,59498.0,0.14626504]
[1723937944347,0.05974215,59499.0,59498.0,0.19668604]
[1723937944715,0.01541943,59499.0,59498.0,0.19668604]
[1723937946014,0.01541943,59499.0,59498.0,0.56992658]
[1723937946195,0.01541943,59499.0,59498.0,0.46908358]
[1723937946827,0.00541943,59499.0,59498.0,0.46908358]
[1723937946977,0.00341943,59499.0,59498.0,0.46908358]
[1723937947183,0.00841943,59499.0,59498.0,0.46908358]
[1723937948109,0.00841943,59499.0,59498.0,0.36824058]
[1723937948244,0.00541943,59499.0,59498.0,0.36824058]
[1723937948443,0.00041943,59499.0,59498.0,0.36824058]
[1723937948645,0.00041943,59499.0,59498.0,0.37824058]
[1723937949047,0.00041943,59499.0,59498.0,0.36824058]
[1723937949538,0.00041943,59499.0,59498.0,0.47708358]
[1723937949712,0.00041943,59499.0,59498.0,0.20468604]
[1723937949912,0.00041943,59499.0,59498.0,0.15426504]
[1723937951934,0.00041943,59499.0,59498.0,0.20468604]
[1723937952136,0.00041943,59499.0,59498.0,0.30552904]
[1723937954578,0.00041943,59499.0,59498.0,0.20468604]
[1723937959666,0.00041943,59499.0,59498.0,0.37624058]
[1723937959878,0.00041943,59499.0,59498.0,0.87643071]
[1723937960084,0.00041943,59499.0,59498.0,1.28301444]
[1723937960288,0.000824,59501.0,59500.0,0.49064]
[1723937960496,0.000824,59501.0,59500.0,1.05628619]
[1723937960696,0.000824,59501.0,59500.0,1.15628619]
[1723937960902,0.000824,59501.0,59500.0,1.22090868]
[1723937961339,0.000824,59508.0,59507.0,0.25207]
[1723937961552,0.000824,59508.0,59507.0,0.69130078]
[1723937962728,0.001824,59508.0,59507.0,0.69994046]
[1723937962931,0.001824,59508.0,59507.0,0.58711246]
[1723937963105,0.001824,59508.0,59507.0,0.56592454]
[1723937963874,0.001824,59508.0,59507.0,0.57692454]
[1723937964095,0.002824,59508.0,59507.0,0.58892454]
[1723937964549,0.000824,59508.0,59507.0,0.56592454]
[1723937964785,0.001824,59508.0,59507.0,0.57892454]
[1723937964990,0.001824,59508.0,59507.0,0.59092454]
[1723937967749,0.001824,59508.0,59507.0,0.69175254]
[1723937968339,0.001824,59508.0,59507.0,0.59092454]
[1723937968812,0.001824,59508.0,59507.0,0.69175254]
[1723937970049,0.001824,59508.0,59507.0,0.59092454]
[1723937971651,0.001824,59508.0,59507.0,0.69175254]
[1723937972351,0.001824,59508.0,59507.0,0.59092454]
[1723937988376,0.001824,59508.0,59507.0,0.61210161]
[1723937989549,0.001824,59508.0,59507.0,0.6121015]
[1723937992374,0.001824,59508.0,59507.0,0.7129295]
[1723937992594,0.001824,59508.0,59507.0,0.9302295]
[1723937992806,0.001824,59508.0,59507.0,0.9639095]
[1723937993010,0.001824,59508.0,59507.0,1.104885]
[1723937993222,0.001824,59508.0,59507.0,0.94344306]
[1723937993426,0.001824,59508.0,59507.0,0.589201]
[1723937993636,0.000824,59508.0,59507.0,0.4903735]
[1723937994046,0.001824,59508.0,59507.0,0.48219654]
[1723937994249,0.001824,59508.0,59507.0,0.60420082]
[1723937994456,0.001824,59508.0,59507.0,0.70502882]
[1723937994657,0.002824,59508.0,59507.0,0.8499662]
[1723937994860,0.001824,59508.0,59507.0,0.8229662]
[1723937995009,0.001824,59508.0,59507.0,0.8359662]
[1723937995209,0.001824,59508.0,59507.0,0.8696462]
[1723937995476,0.000824,59508.0,59507.0,0.8796462]
[1723937995653,0.000824,59508.0,59507.0,0.97806848]
[1723937995881,0.000824,59508.0,59507.0,0.95297701]
[1723937996194,0.000824,59508.0,59507.0,1.02277133]
[1723937996385,1e-08,59508.0,59507.0,1.26165456]
[1723937996591,1e-08,59508.0,59507.0,1.35080389]
[1723937996827,1e-08,59508.0,59507.0,1.27565456]
[1723937997033,1e-08,59508.0,59507.0,0.90287606]
[1723937997234,1e-08,59508.0,59507.0,0.9076462]
[1723937997441,1e-08,59508.0,59507.0,0.95775247]
[1723937997652,1e-08,59508.0,59507.0,0.94375247]
[1723937997875,1e-08,59508.0,59507.0,0.953616]
[1723937998083,1e-08,59508.0,59507.0,0.88950973]
[1723937998288,1e-08,59508.0,59507.0,1.33745229]
[1723937998502,1e-08,59508.0,59507.0,1.29951368]
[1723937998991,1e-08,59508.0,59507.0,1.27149775]
[1723937999235,1e-08,59508.0,59507.0,1.29949775]
[1723937999457,1e-08,59508.0,59507.0,0.9174938]
[1723937999658,1e-08,59508.0,59507.0,0.9034938]
[1723937999870,1e-08,59508.0,59507.0,1.27628113]
[1723938000090,1e-08,59508.0,59507.0,0.9174938]
[1723938000313,1e-08,59508.0,59507.0,1.35145061]
[1723938000810,1e-08,59508.0,59507.0,1.36545061]
[1723938001013,1e-08,59508.0,59507.0,1.50154423]
[1723938001223,1e-08,59508.0,59507.0,1.52659727]
[1723938001421,1e-08,59508.0,59507.0,1.525638]
[1723938001625,1e-08,59508.0,59507.0,1.53128016]
[1723938001868,1e-08,59508.0,59507.0,1.48657731]
[1723938002071,1e-08,59508.0,59507.0,1.50057731]
[1723938002269,1e-08,59508.0,59507.0,1.3863184]
[1723938002671,1e-08,59508.0,59507.0,1.4003184]
[1723938003283,1e-08,59508.0,59507.0,1.525638]
[1723938004150,1e-08,59508.0,59507.0,1.4003184]
[1723938005444,1e-08,59508.0,59507.0,1.3707904]
[1723938005717,1e-08,59508.0,59507.0,1.33064434]
[1723938005917,1e-08,59508.0,59507.0,1.42248192]